bitfinex/quotes_SOLUSD_20250123
["timestamp","ask_amount","ask_price","bid_price","bid_amount"]
[1737641800481,23.776884,245.95,245.82,6.663]
[1737641800684,19.06665553,245.87,245.82,6.663]
[1737641800880,19.06665553,245.89,245.82,10.7309]
[1737641801400,23.776884,245.9,245.82,10.7309]
[1737641801590,19.06665553,245.89,245.81,3.08430332]
[1737641802106,19.06665553,245.87,245.79,19.06665553]
[1737641802289,23.776884,245.86,245.77,4.93959074]
[1737641802598,19.06665553,245.87,245.77,4.93959074]
[1737641802774,8.28176829,245.86,245.78,19.06665553]
[1737641803203,8.28176829,245.86,245.79,4.0685]
[1737641803497,36.12595229,245.86,245.78,4.0686]
[1737641803807,36.12595229,245.86,245.76,15.98774444]
[1737641803808,23.776884,245.85,245.76,15.98774444]
[1737641804182,12.34906829,245.86,245.76,11.91894444]
[1737641804382,11.91894444,245.85,245.76,11.91894444]
[1737641805300,25.0552116,245.78,245.74,11.91894444]
[1737641805482,25.0552116,245.78,245.73,8.1718]
[1737641805684,25.0552116,245.78,245.74,11.91894444]
[1737641806195,25.0552116,245.78,245.76,11.91894444]
[1737641806705,25.0552116,245.78,245.76,11.94894444]
[1737641807208,24.6705116,245.78,245.76,75.95685898]
[1737641807704,24.6064116,245.78,245.76,75.95685898]
[1737641808480,24.6064116,245.78,245.76,73.95685898]
[1737641809310,15.98614444,245.87,245.76,73.95685898]
[1737641810199,15.98614444,245.87,245.78,11.91894444]
[1737641811207,11.91894444,245.87,245.78,11.91894444]
[1737641812106,11.91894444,245.85,245.76,11.94894444]
[1737641814111,11.91894444,245.87,245.78,11.91894444]
[1737641815814,11.91894444,245.87,245.77,11.91894444]
[1737641816004,15.98614444,245.87,245.77,11.91894444]
[1737641817520,27.60589431,245.89,245.81,11.91894444]
[1737641817709,27.60589431,245.89,245.83,11.91894444]
[1737641818609,27.60589431,245.89,245.88,11.91894444]
[1737641820693,11.91894444,245.97,245.88,11.91894444]
[1737641821222,15.98444444,245.97,245.88,11.91894444]
[1737641821417,11.91894444,245.95,245.86,11.91894444]
[1737641825391,11.91894444,245.93,245.86,11.91894444]
[1737641825591,11.91894444,245.95,245.86,11.91894444]
[1737641825903,11.91894444,245.93,245.85,8.0264]
[1737641826104,23.776884,245.9,245.82,11.91894444]
[1737641826421,23.776884,245.9,245.77,1.5509]
[1737641826422,11.91894444,245.89,245.8,11.91894444]
[1737641826602,23.776884,245.9,245.82,11.91894444]
[1737641827521,11.91894444,245.89,245.8,11.91894444]
[1737641828410,4.067,245.88,245.8,11.91894444]
[1737641828728,20.0,245.84,245.76,18.00234444]
[1737641829610,11.91894444,245.85,245.76,18.00234444]
[1737641829815,35.69582844,245.87,245.78,11.91894444]
[1737641830410,11.91894444,245.89,245.8,11.91894444]
[1737641830627,20.0,245.88,245.82,11.91894444]
[1737641832106,11.91894444,245.89,245.8,11.91894444]
[1737641832318,15.98574444,245.89,245.8,11.91894444]
[1737641832513,23.776884,245.88,245.78,11.91894444]
[1737641833407,11.91894444,245.87,245.78,11.91894444]
[1737641833610,11.91894444,245.85,245.76,18.00234444]
[1737641834109,15.98644444,245.85,245.76,18.00234444]
[1737641835613,11.7878,245.91,245.76,18.00234444]
[1737641835614,11.91894444,245.83,245.76,6.0834]
[1737641835919,11.91894444,245.81,245.76,0.03]
[1737641836822,11.91894444,245.79,245.76,0.03]
[1737641838223,11.91894444,245.77,245.76,0.03]
[1737641838734,35.69582844,245.77,245.76,0.03]
[1737641839935,39.76462844,245.77,245.76,0.03]
[1737641840325,11.91894444,245.77,245.76,0.03]
[1737641840526,11.91894444,245.79,245.76,0.03]
[1737641840814,23.776884,245.78,245.76,0.03]
[1737641841525,11.91894444,245.77,245.76,0.03]
[1737641842237,35.69582844,245.77,245.76,0.03]
[1737641843627,39.76462844,245.77,245.76,0.03]
[1737641844817,59.33717288,245.77,245.76,0.03]
[1737641848611,59.33717288,245.77,245.74,0.03]
[1737641848612,24.776884,245.76,245.74,0.03]
[1737641848925,35.69582844,245.75,245.74,0.03]
[1737641849445,35.69582844,245.75,245.74,0.0001]
[1737641850318,20.0,245.71,245.7,0.03]
[1737641850515,59.76562844,245.71,245.7,0.03]
[1737641859645,55.48650893,245.71,245.7,0.03]
[1737641860531,20.0,245.67,245.53,7.63982493]
[1737641860737,7.63982493,245.61,245.53,7.63982493]
[1737641861046,23.776884,245.62,245.53,7.63982493]
[1737641861358,2.0,245.7,245.52,7.9487]
[1737641861359,20.0,245.59,245.52,7.9487]
[1737641861563,31.41670893,245.61,245.53,7.63982493]
[1737641861564,7.63982493,245.61,245.53,7.63982493]
[1737641861739,11.94033389,245.63,245.54,11.94033389]
[1737641861948,23.776884,245.62,245.54,11.94033389]
[1737641862868,27.848184,245.62,245.54,11.94033389]
[1737641863075,11.94033389,245.61,245.52,19.88903389]
[1737641865069,11.94033389,245.64,245.55,11.94033389]
[1737641865860,20.0,245.61,245.55,11.94033389]
[1737641866766,11.94033389,245.62,245.53,11.94033389]
[1737641867560,11.94033389,245.6,245.53,11.94033389]
[1737641868243,11.94033389,245.62,245.53,11.94033389]
[1737641869969,23.776884,245.66,245.52,7.9787]
[1737641869970,11.94033389,245.57,245.52,1.6265]
[1737641870350,11.94033389,245.55,245.52,0.03]
[1737641870555,16.01293389,245.55,245.52,0.03]
[1737641870949,11.94033389,245.53,245.52,0.03]
[1737641871368,35.71721789,245.53,245.52,0.03]
[1737641872385,47.65755178,245.53,245.52,0.03]
[1737641872867,51.73035178,245.53,245.52,0.03]
[1737641873547,20.0,245.49,245.45,0.03]
[1737641873861,51.73035178,245.53,245.45,0.03]
[1737641873862,35.71721789,245.46,245.45,0.03]
[1737641874744,39.79111789,245.46,245.45,0.03]
[1737641880758,11.94033389,245.46,245.45,0.03]
[1737641881774,11.94033389,245.48,245.45,0.03]
[1737641881948,11.94033389,245.5,245.45,0.03]
[1737641882764,11.94033389,245.48,245.45,0.03]
[1737641883176,11.94033389,245.46,245.45,0.03]
[1737641885194,11.94033389,245.5,245.45,0.03]
[1737641885470,2.6004,245.61,245.45,1.5955]
[1737641885471,11.94033389,245.52,245.45,1.5955]
[1737641885675,7.647,245.63,245.45,13.53583389]
[1737641885676,11.94033389,245.54,245.45,13.53583389]
[1737641885853,11.94033389,245.58,245.49,11.94033389]
[1737641886058,11.94033389,245.58,245.45,3.5955]
[1737641886059,11.94033389,245.6,245.51,11.94033389]
[1737641887155,6.0957,245.69,245.45,2.81555175]
[1737641887156,11.94033389,245.62,245.53,11.94033389]
[1737641887360,11.94033389,245.64,245.55,11.94033389]
[1737641887582,11.94033389,245.66,245.57,11.94033389]
[1737641887956,11.94033389,245.66,245.57,13.45363389]
[1737641888471,0.063,245.7,245.63,11.94033389]
[1737641888681,0.063,245.7,245.65,11.94033389]
[1737641893461,0.063,245.7,245.62,0.21979534]
[1737641893462,0.063,245.7,245.67,11.94033389]
[1737641893874,0.063,245.7,245.69,11.94033389]
[1737641894385,0.063,245.7,245.69,6.1087]
[1737641895569,0.063,245.7,245.65,11.94033389]
[1737641897986,0.063,245.7,245.68,11.94033389]
[1737641899370,0.063,245.7,245.66,11.94033389]
[1737641899573,0.063,245.7,245.64,11.94033389]
[1737641899773,12.00333389,245.7,245.63,6.4143]
[1737641900175,0.063,245.7,245.63,6.4143]
[1737641900580,0.063,245.7,245.64,11.94033389]
[1737641902009,12.00333389,245.7,245.63,6.4143]
[1737641902997,12.00333389,245.7,245.62,11.94033389]
[1737641903692,12.00333389,245.7,245.6,11.94033389]
[1737641903885,11.94033389,245.68,245.6,11.94033389]
[1737641904782,11.94033389,245.68,245.58,11.94033389]
[1737641905792,12.00333389,245.7,245.62,11.94033389]
[1737641906304,12.00333389,245.7,245.6,11.94033389]
[1737641907006,12.00333389,245.7,245.58,11.94033389]
[1737641907007,11.94033389,245.68,245.58,11.94033389]
[1737641907700,11.94033389,245.66,245.58,11.94033389]
[1737641908179,11.94033389,245.68,245.58,11.94033389]
[1737641908589,11.94033389,245.66,245.58,11.94033389]
[1737641909001,11.94033389,245.66,245.57,7.7273]
[1737641909396,16.01103389,245.66,245.57,1.5133]
[1737641909596,11.94033389,245.66,245.57,1.5133]
[1737641911188,16.01103389,245.66,245.57,1.5133]
[1737641911509,16.01103389,245.66,245.56,11.94033389]
[1737641912022,16.01103389,245.66,245.58,11.94033389]
[1737641912794,16.01103389,245.66,245.56,11.94033389]
[1737641914394,11.94033389,245.64,245.56,11.94033389]
[1737641914580,11.94033389,245.62,245.54,11.94033389]
[1737641914783,11.94033389,245.62,245.52,11.97033389]
[1737641915214,4.0714,245.61,245.52,11.97033389]
[1737641915592,4.0714,245.61,245.52,0.03]
[1737641915593,11.94033389,245.55,245.52,0.03]
[1737641915907,35.71721789,245.53,245.52,0.03]
[1737641917610,39.79001789,245.53,245.52,0.03]
[1737641917783,11.94033389,245.53,245.52,0.03]
[1737641917987,11.94033389,245.55,245.52,0.03]
[1737641918189,16.01283389,245.55,245.52,0.03]
[1737641918399,1.5932,245.56,245.52,0.03]
[1737641918588,11.94033389,245.59,245.52,0.03]
[1737641919637,16.01213389,245.59,245.52,0.03]
[1737641920890,11.94033389,245.59,245.52,0.03]
[1737641921806,16.01223389,245.59,245.52,0.03]
[1737641923411,11.94033389,245.59,245.52,0.03]
[1737641924209,11.94033389,245.57,245.52,0.03]
[1737641925211,11.94033389,245.55,245.52,0.03]
[1737641926134,11.94033389,245.57,245.52,0.03]
[1737641926489,16.01243389,245.57,245.52,0.03]
[1737641926811,11.94033389,245.55,245.52,0.03]
[1737641927814,11.94033389,245.57,245.52,0.03]
[1737641928019,11.94033389,245.59,245.52,0.03]
[1737641928431,11.94033389,245.61,245.53,11.94033389]
[1737641928731,11.94033389,245.63,245.55,11.94033389]
[1737641930509,0.063,245.59,245.55,11.94033389]
[1737641931529,0.063,245.59,245.57,11.94033389]
[1737641933152,0.063,245.59,245.58,2.21990147]
[1737641933847,0.063,245.59,245.58,0.21990147]
[1737641934220,0.063,245.59,245.58,1.21990147]
[1737641934441,0.063,245.59,245.58,0.21990147]
[1737641934636,0.063,245.59,245.57,108.94033389]
[1737641934637,0.063,245.59,245.57,11.94033389]
[1737641934835,0.063,245.59,245.55,11.94033389]
[1737641935228,0.063,245.59,245.54,0.21991461]
[1737641935550,0.063,245.59,245.53,108.94033389]
[1737641935864,0.063,245.59,245.55,11.94033389]
[1737641938148,0.063,245.59,245.54,0.21996815]
[1737641938919,0.063,245.59,245.55,11.94033389]
[1737641940325,0.063,245.59,245.57,11.94033389]
[1737641941247,0.063,245.59,245.55,11.94033389]
[1737641941622,0.063,245.59,245.53,13.79665093]
[1737641941828,0.063,245.59,245.53,11.94033389]
[1737641942026,0.063,245.59,245.52,0.03]
[1737641942227,12.00333389,245.59,245.52,0.03]
[1737641944031,0.063,245.59,245.53,11.94033389]
[1737641945342,0.063,245.59,245.52,0.24999041]
[1737641945343,0.063,245.59,245.52,0.03]
[1737641947876,0.063,245.59,245.55,11.94033389]
[1737641948042,0.063,245.59,245.57,11.94033389]
[1737641948558,0.063,245.59,245.58,0.21991175]
[1737641950344,0.063,245.59,245.58,97.21991175]
[1737641950560,0.063,245.59,245.58,97.0]
[1737641950765,0.063,245.59,245.58,120.776884]
[1737641952967,0.063,245.59,245.58,209.026684]
[1737641953451,0.063,245.66,245.65,11.94033389]
[1737641954651,0.063,245.66,245.65,12.16007062]
[1737641954983,0.063,245.66,245.65,109.16007062]
[1737641955174,0.063,245.66,245.65,108.94033389]
[1737641957860,0.063,245.66,245.65,11.94033389]
[1737641961681,0.063,245.66,245.63,12.16012619]
[1737641963887,0.063,245.66,245.63,109.16012619]
[1737641964097,0.063,245.66,245.63,108.94033389]
[1737641964688,0.063,245.66,245.65,11.94033389]
[1737641965983,0.063,245.66,245.63,108.94033389]
[1737641968162,0.063,245.66,245.59,11.94033389]
[1737641968661,0.063,245.66,245.6,0.21988928]
[1737641968861,0.063,245.66,245.59,11.94033389]
[1737641969266,0.063,245.66,245.59,12.16021502]
[1737641970469,0.063,245.66,245.59,11.94033389]
[1737641972119,0.063,245.66,245.57,97.0]
[1737641972120,11.94033389,245.65,245.57,97.0]
[1737641972271,11.94033389,245.63,245.57,97.0]
[1737641972610,11.94033389,245.61,245.53,108.94033389]
[1737641972775,11.94033389,245.61,245.52,0.03]
[1737641972979,11.94033389,245.59,245.52,0.03]
[1737641973916,11.94033389,245.55,245.52,0.03]
[1737641974079,11.94033389,245.53,245.52,0.03]
[1737641976707,35.71721789,245.53,245.52,0.03]
[1737641977215,37.24941789,245.53,245.52,0.03]
[1737641977412,49.18975178,245.53,245.45,0.03]
[1737641977580,11.94033389,245.46,245.45,0.03]
[1737641979279,35.71721789,245.46,245.45,0.03]
[1737641979679,11.94033389,245.46,245.45,0.03]
[1737641980685,11.94033389,245.48,245.45,0.03]
[1737641982424,11.94033389,245.46,245.45,0.03]
[1737641982979,11.94033389,245.48,245.45,0.03]
[1737641983513,11.94033389,245.46,245.45,0.03]
[1737641984017,11.94033389,245.48,245.45,0.03]
[1737641985289,11.94033389,245.46,245.45,0.03]
[1737641990994,35.71721789,245.46,245.45,0.03]
[1737641991604,39.79111789,245.46,245.45,0.03]
[1737641991998,35.71721789,245.46,245.45,0.03]
[1737641992293,39.79111789,245.46,245.45,0.03]
[1737641993884,11.94033389,245.46,245.45,0.03]
[1737641994400,23.89853389,245.46,245.45,0.03]
[1737641994607,11.94033389,245.38,245.34,0.03]
[1737641995390,23.776884,245.37,245.34,0.03]
[1737641995937,55.71721789,245.35,245.34,0.03]
[1737641996209,57.21761789,245.35,245.34,0.03]
[1737641996988,20.0,245.31,245.27,0.03]
[1737641997191,11.94033389,245.28,245.27,0.03]
[1737641998009,11.94033389,245.32,245.27,0.03]
[1737641999317,23.776884,245.31,245.27,0.03]
[1737641999526,11.94033389,245.32,245.27,0.03]
[1737642000314,11.94033389,245.36,245.27,11.97033389]
[1737642000518,11.94033389,245.38,245.29,11.94033389]
[1737642000729,11.94033389,245.36,245.27,11.97033389]
[1737642001408,11.94033389,245.34,245.27,0.03]
[1737642002311,11.94033389,245.32,245.27,0.03]
[1737642003466,11.94033389,245.34,245.27,0.03]
[1737642003643,23.776884,245.33,245.27,0.03]
[1737642004023,11.94033389,245.3,245.27,0.03]
[1737642004609,11.94033389,245.28,245.27,0.03]
[1737642005027,35.71721789,245.28,245.27,0.03]
[1737642005224,47.65755178,245.28,245.27,0.03]
[1737642005821,35.71721789,245.28,245.27,0.03]
[1737642006414,35.71721789,245.28,245.08,11.94033389]
[1737642006415,20.0,245.23,245.08,11.94033389]
[1737642006733,11.94033389,245.19,245.1,11.94033389]
[1737642008021,11.94033389,245.21,245.1,11.94033389]
[1737642009128,11.94033389,245.19,245.08,11.94033389]
[1737642009331,11.52509461,245.19,245.08,11.94033389]
[1737642009636,11.94033389,245.17,245.08,11.94033389]
[1737642010415,11.94033389,245.15,245.06,11.94033389]
[1737642010619,11.94033389,245.15,245.04,11.94033389]
[1737642011009,11.94033389,245.15,245.0,11.94033389]
[1737642011010,11.94033389,245.09,245.0,11.94033389]
[1737642011429,11.94033389,245.11,245.02,11.94033389]
[1737642011835,11.94033389,245.11,245.0,11.94033389]
[1737642012132,11.94033389,245.07,244.98,11.94033389]
[1737642013334,4.0795,245.13,244.94,11.94033389]
[1737642013335,11.94033389,245.03,244.94,11.94033389]
[1737642013640,10.1986,245.13,244.94,11.94033389]
[1737642013641,11.94033389,245.05,244.94,11.94033389]
[1737642014136,10.1986,245.13,244.94,11.94033389]
[1737642014137,11.94033389,245.03,244.94,11.94033389]
[1737642014321,11.94033389,244.97,244.88,11.94033389]
[1737642015022,11.94033389,244.99,244.9,11.94033389]
[1737642015616,11.94033389,244.97,244.88,11.97033389]
[1737642016016,11.94033389,244.99,244.88,11.97033389]
[1737642016431,11.94033389,244.97,244.88,11.97033389]
[1737642016821,11.94033389,244.99,244.88,11.97033389]
[1737642017021,11.94033389,245.02,244.92,11.94033389]
[1737642017318,11.94033389,245.04,244.94,11.94033389]
[1737642017513,11.94033389,245.06,244.96,11.94033389]
[1737642018841,11.94033389,245.06,244.98,11.94033389]
[1737642019035,11.94033389,245.08,244.98,11.94033389]
[1737642019521,11.94033389,245.1,245.0,11.94033389]
[1737642020518,10.1958,245.2,244.96,7.1004]
[1737642020519,11.94033389,245.12,244.99,2.0]
[1737642020719,11.94033389,245.12,245.04,11.94033389]
[1737642023084,11.94033389,245.14,245.04,11.94033389]
[1737642023452,11.94033389,245.16,245.06,11.94033389]
[1737642024984,11.94033389,245.14,245.06,11.94033389]
[1737642025476,6.5683,245.2,245.04,11.94033389]
[1737642025477,11.94033389,245.12,245.04,11.94033389]
[1737642026855,11.94033389,245.12,245.02,11.94033389]
[1737642028359,11.94033389,245.1,245.0,11.94033389]
[1737642028570,11.94033389,245.16,245.0,11.94033389]
[1737642028571,11.94033389,245.08,245.0,11.94033389]
[1737642031290,11.94033389,245.12,245.02,11.94033389]
[1737642032476,6.5683,245.2,245.0,11.94033389]
[1737642032477,11.94033389,245.1,245.0,11.94033389]
[1737642033189,11.94033389,245.1,244.97,1.0]
[1737642033190,11.94033389,245.1,245.02,11.94033389]
[1737642033360,11.94033389,245.14,245.04,11.94033389]
[1737642033572,11.94033389,245.14,245.06,11.94033389]
[1737642034958,11.94033389,245.18,245.1,11.94033389]
[1737642035172,0.063,245.19,245.12,11.94033389]
[1737642035463,0.063,245.19,245.14,11.94033389]
[1737642036396,0.063,245.19,245.16,11.94033389]
[1737642036687,0.063,245.19,245.14,11.94033389]
[1737642037103,0.063,245.19,245.09,6.4808]
[1737642037104,0.063,245.19,245.12,11.94033389]
[1737642038461,0.063,245.19,245.14,11.94033389]
[1737642039501,0.063,245.19,245.18,11.94033389]
[1737642039812,0.063,245.34,245.18,11.94033389]
[1737642039813,0.063,245.34,245.23,1.0]
[1737642040101,0.063,245.34,245.31,11.94033389]
[1737642040663,0.063,245.34,245.24,0.22042165]
[1737642040664,0.063,245.34,245.33,11.94033389]
[1737642041315,0.063,245.34,245.33,12.94033389]
[1737642041733,0.063,245.34,245.33,20.12318381]
[1737642042599,0.063,245.34,245.33,43.90006781]
[1737642042810,0.063,245.44,245.36,22.0]
[1737642043135,0.063,245.44,245.33,49.41266781]
[1737642043136,0.063,245.44,245.43,19.12318381]
[1737642043337,0.063,245.44,245.43,19.34327154]
[1737642044208,0.063,245.52,245.46,21.0]
[1737642044409,0.063,245.52,245.51,19.12318381]
[1737642045333,0.063,245.52,245.51,19.34316702]
[1737642045631,0.063,245.52,245.51,20.34316702]
[1737642045842,0.063,245.52,245.51,19.34316702]
[1737642046014,0.063,245.52,245.51,19.12318381]
[1737642046336,0.063,245.52,245.49,19.12318381]
[1737642047012,0.063,245.52,245.51,19.12318381]
[1737642052561,0.063,245.52,245.47,19.12318381]
[1737642052735,0.063,245.52,245.43,0.22012497]
[1737642052926,0.063,245.52,245.51,19.12318381]
[1737642054563,0.00589987,245.52,245.51,19.12318381]
[1737642056770,0.00589987,245.52,245.51,19.34317186]
[1737642057075,0.00589987,245.52,245.51,38.46635567]
[1737642057464,0.063,245.66,245.52,1.0]
[1737642057772,0.063,245.66,245.58,19.12318381]
[1737642059469,0.063,245.66,245.58,19.34300543]
[1737642059767,0.063,245.66,245.58,20.34300543]
[1737642061158,0.063,245.66,245.65,116.12318381]
[1737642061550,0.063,245.66,245.65,141.90006781]
[1737642062052,0.063,245.66,245.65,116.12318381]
[1737642063673,0.063,245.74,245.68,21.0]
[1737642063968,0.063,245.74,245.73,116.12318381]
[1737642065044,0.063,245.74,245.73,139.90006781]
[1737642065246,0.063,245.78,245.76,179.02325162]
[1737642066163,0.063,245.78,245.76,491.02325162]
[1737642066474,0.063,245.91,245.77,24.776884]
[1737642066659,0.063,245.91,245.85,19.12318381]
[1737642067561,0.063,245.91,245.87,19.12318381]
[1737642068041,0.063,245.91,245.85,116.12318381]
[1737642068673,0.063,245.91,245.87,19.12318381]
[1737642072574,0.063,245.91,245.89,19.12318381]
[1737642073566,0.063,245.91,245.89,116.12318381]
[1737642073774,0.063,245.91,245.9,0.21935362]
[1737642073948,0.063,245.91,245.9,120.99623762]
[1737642074150,0.063,245.95,245.93,20.0]
[1737642074454,0.063,245.95,245.94,116.34244604]
[1737642074659,0.063,245.95,245.94,116.12318381]
[1737642076656,0.01077447,245.95,245.94,116.12318381]
[1737642079663,0.01077447,245.95,245.94,108.89543644]
[1737642080583,0.01077447,245.95,245.92,108.89543644]
[1737642080783,0.01077447,245.95,245.88,11.89543644]
[1737642080988,0.01077447,245.95,245.85,11.89543644]
[1737642080989,11.89543644,245.94,245.85,11.89543644]
[1737642081281,0.01077447,245.95,245.89,108.89543644]
[1737642081487,0.01077447,245.95,245.89,11.89543644]
[1737642081783,0.01077447,245.95,245.87,11.89543644]
[1737642082081,0.01077447,245.95,245.89,11.89543644]
[1737642082450,0.01077447,245.95,245.86,97.0]
[1737642082451,11.90621091,245.95,245.86,97.0]
[1737642082655,11.89543644,245.93,245.85,11.89543644]
[1737642083059,11.90621091,245.95,245.85,11.89543644]
[1737642083767,0.01077447,245.95,245.88,19.05047087]
[1737642084074,0.01077447,245.95,245.9,19.05047087]
[1737642084252,0.01077447,245.95,245.92,19.05047087]
[1737642084457,0.01077447,245.95,245.94,19.05047087]
[1737642084866,0.01077447,245.95,245.94,116.05047087]
[1737642086662,0.01077447,245.95,245.94,19.05047087]
[1737642086863,0.01077447,245.95,245.9,19.05047087]
[1737642087471,0.01077447,245.95,245.88,19.05047087]
[1737642089374,0.01077447,245.95,245.94,0.03]
[1737642091887,19.06124534,245.95,245.94,0.03]
[1737642092258,42.83812934,245.95,245.94,0.03]
[1737642092479,20.0,245.91,245.81,19.05047087]
[1737642092683,27.842884,245.94,245.72,180.8265]
[1737642092684,19.05047087,245.88,245.79,19.05047087]
[1737642093062,19.05047087,245.88,245.77,19.05047087]
[1737642093580,19.05047087,245.86,245.75,19.05047087]
[1737642094090,19.05047087,245.82,245.73,19.05047087]
[1737642095896,14.05047087,245.82,245.73,19.05047087]
[1737642098294,14.05047087,245.82,245.66,97.0]
[1737642098295,23.776884,245.79,245.71,19.05047087]
[1737642098601,19.05047087,245.8,245.71,19.05047087]
[1737642098772,1.5977,245.81,245.75,19.05047087]
[1737642100197,1.5977,245.81,245.77,19.05047087]
[1737642100500,1.6227,245.87,245.79,19.05047087]
[1737642100695,1.6227,245.87,245.82,19.05047087]
[1737642100893,1.6227,245.87,245.84,19.05047087]
[1737642101275,1.6227,245.87,245.82,19.05047087]
[1737642102581,1.6227,245.87,245.8,19.05047087]
[1737642103098,19.05047087,245.84,245.76,19.05047087]
[1737642103277,23.776884,245.83,245.74,19.05047087]
[1737642105908,1.6286,245.93,245.82,116.05047087]
[1737642106089,2.0,246.04,245.76,20.05047087]
[1737642106090,1.6916,245.99,245.92,19.05047087]
[1737642107594,1.6916,245.99,245.9,19.05047087]
[1737642107800,20.74207087,245.99,245.9,19.05047087]
[1737642107996,20.01077447,245.95,245.88,19.05047087]
[1737642108299,23.776884,245.94,245.84,19.05047087]
[1737642108796,19.05047087,245.93,245.84,19.05047087]
[1737642108977,39.06124534,245.95,245.84,19.05047087]
[1737642109775,20.01077447,245.95,245.89,19.05047087]
[1737642110910,20.01077447,245.95,245.87,19.05047087]
[1737642113308,0.063,245.94,245.87,19.05047087]
[1737642114001,39.05047087,245.92,245.83,19.05047087]
[1737642114714,39.05047087,245.92,245.85,19.05047087]
[1737642114928,23.776884,245.91,245.83,19.05047087]
[1737642116621,23.776884,245.91,245.81,19.05047087]
[1737642116622,23.776884,245.87,245.81,19.05047087]
[1737642116824,23.11707087,245.91,245.81,19.05047087]
[1737642118309,23.11707087,245.91,245.83,19.05047087]
[1737642118310,20.0,245.88,245.83,19.05047087]
[1737642119206,23.11707087,245.91,245.83,19.05047087]
[1737642119608,0.063,245.94,245.87,19.05047087]
[1737642119935,23.776884,245.92,245.85,19.05047087]
[1737642120812,23.776884,245.9,245.83,19.05047087]
[1737642121929,27.843584,245.9,245.83,19.05047087]
[1737642122941,23.776884,245.9,245.83,19.05047087]
[1737642124118,19.05047087,245.91,245.83,19.05047087]
[1737642124546,19.05047087,245.93,245.83,19.05047087]
[1737642125005,42.82735487,245.93,245.85,19.05047087]
[1737642125802,23.776884,245.93,245.86,11.90924589]
[1737642127222,0.063,245.94,245.86,11.90924589]
[1737642127919,0.063,245.94,245.88,11.90924589]
[1737642128457,0.063,245.94,245.9,11.90924589]
[1737642129148,0.063,245.94,245.92,11.90924589]
[1737642130039,0.063,245.94,245.93,97.21935912]
[1737642130240,0.063,245.94,245.93,97.0]
[1737642138845,0.063,245.94,245.92,11.90924589]
[1737642139053,0.063,245.94,245.9,11.90924589]
[1737642139452,0.063,245.94,245.88,97.0]
[1737642139635,0.063,245.94,245.92,11.90924589]
[1737642142442,0.063,245.94,245.92,108.90924589]
[1737642142640,0.063,245.99,245.96,20.0]
[1737642142955,0.063,245.99,245.98,108.90924589]
[1737642146734,11.97224589,246.12,245.98,108.90924589]
[1737642146735,0.063,246.12,246.01,20.0]
[1737642147072,0.063,246.12,246.05,11.90924589]
[1737642148333,0.063,246.12,246.02,97.0]
[1737642148662,0.063,246.12,246.08,11.90924589]
[1737642149071,0.063,246.12,246.11,20.0]
[1737642149259,0.063,246.12,246.11,31.90924589]
[1737642149858,0.063,246.12,246.11,32.12824945]
[1737642150337,0.063,246.12,246.11,129.12824945]
[1737642150546,0.063,246.12,246.11,128.90924589]
[1737642150748,0.063,246.16,246.15,97.0]
[1737642150937,0.063,246.2,246.15,97.0]
[1737642150938,0.063,246.2,246.18,117.0]
[1737642151134,0.063,246.2,246.18,128.90924589]
[1737642155779,0.063,246.24,246.22,20.0]
[1737642155982,0.063,246.24,246.23,12.12803985]
[1737642157051,0.063,246.24,246.23,24.03728574]
[1737642157557,0.063,246.24,246.23,203.23728574]
[1737642157756,0.063,246.24,246.23,203.01849178]
[1737642158388,1.5712,246.37,246.26,20.0]
[1737642158572,1.5712,246.37,246.23,226.79537578]
[1737642158573,1.5712,246.37,246.33,11.90924589]
[1737642159067,20.0,246.4,246.33,11.90924589]
[1737642159276,0.03,246.41,246.33,11.90924589]
[1737642160163,11.90924589,246.39,246.33,312.0]
[1737642160366,11.90924589,246.35,246.26,11.90924589]
[1737642160690,11.90924589,246.33,246.24,11.90924589]
[1737642162869,11.97224589,246.33,246.24,11.90924589]
[1737642163472,11.97224589,246.33,246.26,312.0]
[1737642163772,0.063,246.33,246.26,323.90924589]